[Event "Titled Tuesday Blitz January 03 Late 2023"]
[White "ArchibaldCerveza29"]
[Black "Guo, Josh"]
[BlackFideId "2682427"]
[WhiteElo "2509"]
[BlackElo "2112"]
[Result "0-1"]
[Round "03"]
[TimeControl "180+2"]
[Date "2023.01.03"]
[WhiteClock "0:00:05"]
[BlackClock "0:00:17"]

1. d4 {[%clk 0:03:00]}  Nf6 {[%clk 0:02:59]} 2. Nf3 {[%clk 0:02:56]}  g6 {[%clk 0:02:57]} 3. b3 {[%clk 0:02:55]}  Bg7 {[%clk 0:02:56]} 4. Bb2 {[%clk 0:02:56]}  d5 {[%clk 0:02:46]} 5. g3 {[%clk 0:02:49]}  O-O {[%clk 0:02:42]} 6. Bg2 {[%clk 0:02:50]}  Bf5 {[%clk 0:02:33]} 7. O-O {[%clk 0:02:48]}  c6 {[%clk 0:02:27]} 8. c4 {[%clk 0:02:43]}  dxc4 {[%clk 0:02:07]} 9. bxc4 {[%clk 0:02:41]}  Qb6 {[%clk 0:02:05]} 10. Qb3 {[%clk 0:02:39]}  Nbd7 {[%clk 0:01:48]} 11. Nc3 {[%clk 0:02:17]}  Ne4 {[%clk 0:01:44]} 12. Na4 {[%clk 0:02:07]}  Qxb3 {[%clk 0:01:37]} 13. axb3 {[%clk 0:02:08]}  b5 {[%clk 0:01:37]} 14. Nc3 {[%clk 0:02:01]}  bxc4 {[%clk 0:01:30]} 15. bxc4 {[%clk 0:01:45]}  Rfb8 {[%clk 0:01:30]} 16. Nxe4 {[%clk 0:01:34]}  Rxb2 {[%clk 0:01:29]} 17. Nc3 {[%clk 0:01:32]}  a5 {[%clk 0:01:14]} 18. e4 {[%clk 0:01:24]}  Bg4 {[%clk 0:01:13]} 19. e5 {[%clk 0:01:20]}  Rb3 {[%clk 0:00:57]} 20. Rfc1 {[%clk 0:00:45]}  Bh6 {[%clk 0:00:56]} 21. Ng5 {[%clk 0:00:26]}  Bxg5 {[%clk 0:00:53]} 22. f4 {[%clk 0:00:27]}  Ra6 {[%clk 0:00:38]} 23. fxg5 {[%clk 0:00:27]}  c5 {[%clk 0:00:31]} 24. h3 {[%clk 0:00:13]}  Bf5 {[%clk 0:00:30]} 25. g4 {[%clk 0:00:12]}  Bd3 {[%clk 0:00:30]} 26. d5 {[%clk 0:00:12]}  Nxe5 {[%clk 0:00:29]} 27. Na4 {[%clk 0:00:07]}  Rb4 {[%clk 0:00:20]} 28. Nxc5 {[%clk 0:00:08]}  Ra7 {[%clk 0:00:21]} 29. Re1 {[%clk 0:00:08]}  Rxc4 {[%clk 0:00:17]} 30. Rxe5 {[%clk 0:00:05]}  Rxc5 {[%clk 0:00:17]} 31. Rae1 {[%clk 0:00:04]}  Kf8 {[%clk 0:00:17]} 32. R5e3 {[%clk 0:00:02]}  Bc4 {[%clk 0:00:16]} 33. d6 {[%clk 0:00:02]}  exd6 {[%clk 0:00:15]} 34. Re8+ {[%clk 0:00:03]}  Kg7 {[%clk 0:00:15]} 35. Rb8 {[%clk 0:00:03]}  a4 {[%clk 0:00:15]} 36. Ree8 {[%clk 0:00:04]}  f6 {[%clk 0:00:13]} 37. gxf6+ {[%clk 0:00:04]}  Kxf6 {[%clk 0:00:13]} 38. h4 {[%clk 0:00:05]}  g5 {[%clk 0:00:12]} 39. h5 {[%clk 0:00:05]}  a3 {[%clk 0:00:11]} 40. Ra8 {[%clk 0:00:04]}  Rxa8 {[%clk 0:00:11]} 41. Rxa8 {[%clk 0:00:05]}  a2 {[%clk 0:00:11]} 42. Kh2 {[%clk 0:00:05]}  Rb5 {[%clk 0:00:12]} 43. Be4 {[%clk 0:00:05]}  Ke5 {[%clk 0:00:11]} 44. Bxh7 {[%clk 0:00:04]}  Rb2+ {[%clk 0:00:11]} 45. Kg3 {[%clk 0:00:04]}  Rb3+ {[%clk 0:00:11]} 46. Kf2 {[%clk 0:00:04]}  Rb2+ {[%clk 0:00:12]} 47. Ke3 {[%clk 0:00:04]}  d5 {[%clk 0:00:12]} 48. Ra3 {[%clk 0:00:04]}  d4+ {[%clk 0:00:11]} 49. Kf3 {[%clk 0:00:04]}  Rb3+ {[%clk 0:00:10]} 50. Rxb3 {[%clk 0:00:04]}  Bxb3 {[%clk 0:00:11]} 51. h6 {[%clk 0:00:04]}  a1=Q {[%clk 0:00:11]} 52. Bf5 {[%clk 0:00:04]}  Qf1+ {[%clk 0:00:11]} 53. Kg3 {[%clk 0:00:05]}  Qg1+ {[%clk 0:00:11]} 54. Kf3 {[%clk 0:00:04]}  Qe3+ {[%clk 0:00:12]} 55. Kg2 {[%clk 0:00:04]}  Kf4 {[%clk 0:00:12]} 56. h7 {[%clk 0:00:04]}  Qg3+ {[%clk 0:00:12]} 57. Kf1 {[%clk 0:00:03]}  Qh3+ {[%clk 0:00:13]} 58. Ke2 {[%clk 0:00:03]}  d3+ {[%clk 0:00:13]} 59. Bxd3 {[%clk 0:00:02]}  Qh2+ {[%clk 0:00:13]} 60. Ke1 {[%clk 0:00:02]}  Qh6 {[%clk 0:00:14]} 61. Kd2 {[%clk 0:00:02]}  Qg7 {[%clk 0:00:14]} 62. Ke2 {[%clk 0:00:02]}  Qh8 {[%clk 0:00:15]} 63. Kd2 {[%clk 0:00:03]}  Bd5 {[%clk 0:00:15]} 64. Bf5 {[%clk 0:00:03]}  Be4 {[%clk 0:00:15]} 65. Bxe4 {[%clk 0:00:02]}  Kxe4 {[%clk 0:00:16]} 66. Ke2 {[%clk 0:00:03]}  Kf4 {[%clk 0:00:17]} 67. Kf1 {[%clk 0:00:04]}  Qxh7 {[%clk 0:00:17]} 68. Kg1 {[%clk 0:00:05]}  Kxg4 {[%clk 0:00:17]} 69. Kg2 {[%clk 0:00:05]}  Qc2+ {[%clk 0:00:17]} 70. Kg1 {[%clk 0:00:05]}  Kg3 {[%clk 0:00:17]} 0-1


[Site "https://www.chess.com"]

[Event "Titled Tuesday Blitz January 03 Late 2023"]
[White "Wu, Brandon"]
[Black "Papp, Petra"]
[WhiteFideId "30909228"]
[BlackFideId "739049"]
[WhiteElo "2123"]
[BlackElo "2343"]
[Result "0-1"]
[Round "03"]
[TimeControl "180+2"]
[Date "2023.01.03"]
[WhiteClock "0:00:28"]
[BlackClock "0:00:17"]

1. Nf3 {[%clk 0:03:00]}  Nf6 {[%clk 0:03:00]} 2. c4 {[%clk 0:03:01]}  g6 {[%clk 0:02:56]} 3. g3 {[%clk 0:03:01]}  Bg7 {[%clk 0:02:56]} 4. Bg2 {[%clk 0:03:01]}  O-O {[%clk 0:02:56]} 5. O-O {[%clk 0:03:02]}  c6 {[%clk 0:02:55]} 6. d4 {[%clk 0:03:02]}  d5 {[%clk 0:02:56]} 7. Nc3 {[%clk 0:03:01]}  e6 {[%clk 0:02:51]} 8. Ne5 {[%clk 0:02:59]}  Nbd7 {[%clk 0:02:50]} 9. Nxd7 {[%clk 0:02:52]}  Qxd7 {[%clk 0:02:50]} 10. c5 {[%clk 0:02:30]}  b6 {[%clk 0:02:46]} 11. b4 {[%clk 0:01:51]}  Ba6 {[%clk 0:02:37]} 12. a4 {[%clk 0:01:47]}  Bc4 {[%clk 0:02:36]} 13. cxb6 {[%clk 0:01:43]}  axb6 {[%clk 0:02:35]} 14. Re1 {[%clk 0:01:38]}  Ra7 {[%clk 0:02:33]} 15. f3 {[%clk 0:01:31]}  Rfa8 {[%clk 0:02:27]} 16. Be3 {[%clk 0:01:29]}  Qe7 {[%clk 0:02:14]} 17. Qb1 {[%clk 0:01:28]}  Nd7 {[%clk 0:02:10]} 18. Bf2 {[%clk 0:00:52]}  c5 {[%clk 0:02:04]} 19. bxc5 {[%clk 0:00:51]}  bxc5 {[%clk 0:02:04]} 20. Qd1 {[%clk 0:00:49]}  cxd4 {[%clk 0:01:37]} 21. Bxd4 {[%clk 0:00:50]}  Bxd4+ {[%clk 0:01:31]} 22. Qxd4 {[%clk 0:00:51]}  Qc5 {[%clk 0:01:29]} 23. Rad1 {[%clk 0:00:46]}  Qxd4+ {[%clk 0:01:25]} 24. Rxd4 {[%clk 0:00:46]}  Nc5 {[%clk 0:01:26]} 25. e4 {[%clk 0:00:46]}  Nxa4 {[%clk 0:01:21]} 26. exd5 {[%clk 0:00:46]}  Nxc3 {[%clk 0:01:13]} 27. Rxc4 {[%clk 0:00:45]}  Nxd5 {[%clk 0:01:12]} 28. f4 {[%clk 0:00:44]}  Ra2 {[%clk 0:00:50]} 29. Rd4 {[%clk 0:00:37]}  R8a5 {[%clk 0:00:46]} 30. h3 {[%clk 0:00:16]}  Rb2 {[%clk 0:00:39]} 31. Bxd5 {[%clk 0:00:15]}  Rxd5 {[%clk 0:00:24]} 32. Rxd5 {[%clk 0:00:15]}  exd5 {[%clk 0:00:25]} 33. Rd1 {[%clk 0:00:16]}  Rb5 {[%clk 0:00:25]} 34. Kf2 {[%clk 0:00:17]}  Kf8 {[%clk 0:00:25]} 35. g4 {[%clk 0:00:17]}  Ke7 {[%clk 0:00:26]} 36. Ke3 {[%clk 0:00:17]}  Ke6 {[%clk 0:00:25]} 37. Kd4 {[%clk 0:00:18]}  Rb4+ {[%clk 0:00:25]} 38. Kc5 {[%clk 0:00:18]}  Rxf4 {[%clk 0:00:24]} 39. Re1+ {[%clk 0:00:18]}  Re4 {[%clk 0:00:22]} 40. Rf1 {[%clk 0:00:19]}  Re3 {[%clk 0:00:20]} 41. h4 {[%clk 0:00:19]}  Re4 {[%clk 0:00:20]} 42. g5 {[%clk 0:00:20]}  Rxh4 {[%clk 0:00:20]} 43. Rf6+ {[%clk 0:00:21]}  Ke5 {[%clk 0:00:18]} 44. Rxf7 {[%clk 0:00:21]}  Rc4+ {[%clk 0:00:18]} 45. Kb5 {[%clk 0:00:22]}  Rg4 {[%clk 0:00:18]} 46. Rxh7 {[%clk 0:00:21]}  Rxg5 {[%clk 0:00:18]} 47. Re7+ {[%clk 0:00:22]}  Kf6 {[%clk 0:00:17]} 48. Re1 {[%clk 0:00:23]}  Re5 {[%clk 0:00:17]} 49. Rf1+ {[%clk 0:00:23]}  Rf5 {[%clk 0:00:18]} 50. Rg1 {[%clk 0:00:24]}  g5 {[%clk 0:00:18]} 51. Kc5 {[%clk 0:00:25]}  Kg6 {[%clk 0:00:18]} 52. Re1 {[%clk 0:00:24]}  Kh5 {[%clk 0:00:18]} 53. Re8 {[%clk 0:00:25]}  g4 {[%clk 0:00:18]} 54. Rh8+ {[%clk 0:00:24]}  Kg5 {[%clk 0:00:18]} 55. Re8 {[%clk 0:00:25]}  g3 {[%clk 0:00:17]} 56. Re3 {[%clk 0:00:25]}  Kf4 {[%clk 0:00:17]} 57. Re2 {[%clk 0:00:25]}  Kf3 {[%clk 0:00:17]} 58. Re1 {[%clk 0:00:25]}  g2 {[%clk 0:00:16]} 59. Ra1 {[%clk 0:00:26]}  Kf2 {[%clk 0:00:16]} 60. Ra2+ {[%clk 0:00:27]}  Kg3 {[%clk 0:00:17]} 61. Ra1 {[%clk 0:00:28]}  Kh2 {[%clk 0:00:17]} 0-1


[Site "https://www.chess.com"]

[Event "Titled Tuesday Blitz January 03 Late 2023"]
[White "Clawitter, Craig"]
[Black "Lorenzo De La Riva, Lazaro"]
[WhiteFideId "2023105"]
[BlackFideId "2268809"]
[WhiteElo "2050"]
[BlackElo "2404"]
[Result "0-1"]
[Round "03"]
[TimeControl "180+2"]
[Date "2023.01.03"]
[WhiteClock "0:00:45"]
[BlackClock "0:01:02"]

1. e4 {[%clk 0:03:00]}  e6 {[%clk 0:02:57]} 2. d4 {[%clk 0:03:00]}  d5 {[%clk 0:02:57]} 3. e5 {[%clk 0:03:01]}  c5 {[%clk 0:02:57]} 4. c3 {[%clk 0:03:01]}  Nc6 {[%clk 0:02:57]} 5. Nf3 {[%clk 0:03:02]}  Bd7 {[%clk 0:02:57]} 6. Be2 {[%clk 0:03:01]}  f6 {[%clk 0:02:55]} 7. O-O {[%clk 0:03:00]}  fxe5 {[%clk 0:02:52]} 8. dxe5 {[%clk 0:03:00]}  Qc7 {[%clk 0:02:49]} 9. Re1 {[%clk 0:02:59]}  Nh6 {[%clk 0:02:46]} 10. Bd3 {[%clk 0:02:51]}  Nf7 {[%clk 0:02:43]} 11. Bf4 {[%clk 0:02:48]}  O-O-O {[%clk 0:02:41]} 12. b4 {[%clk 0:02:44]}  c4 {[%clk 0:02:39]} 13. Bc2 {[%clk 0:02:44]}  Be7 {[%clk 0:02:31]} 14. a4 {[%clk 0:02:38]}  g5 {[%clk 0:02:31]} 15. Bg3 {[%clk 0:02:37]}  h5 {[%clk 0:02:31]} 16. h3 {[%clk 0:02:33]}  g4 {[%clk 0:02:30]} 17. hxg4 {[%clk 0:02:34]}  hxg4 {[%clk 0:02:29]} 18. Nd4 {[%clk 0:02:34]}  Nxd4 {[%clk 0:02:26]} 19. Qxd4 {[%clk 0:02:29]}  Kb8 {[%clk 0:02:24]} 20. Na3 {[%clk 0:02:26]}  Rh6 {[%clk 0:02:10]} 21. Nb5 {[%clk 0:02:21]}  Bxb5 {[%clk 0:02:10]} 22. axb5 {[%clk 0:02:21]}  b6 {[%clk 0:02:10]} 23. Qxg4 {[%clk 0:02:14]}  Rdh8 {[%clk 0:02:08]} 24. f4 {[%clk 0:02:06]}  Qd8 {[%clk 0:01:52]} 25. f5 {[%clk 0:01:48]}  Rg8 {[%clk 0:01:52]} 26. Qf3 {[%clk 0:01:42]}  Ng5 {[%clk 0:01:49]} 27. Qe3 {[%clk 0:01:33]}  Nh3+ {[%clk 0:01:49]} 28. gxh3 {[%clk 0:01:26]}  Rxh3 {[%clk 0:01:48]} 29. Kg2 {[%clk 0:01:21]}  Rhxg3+ {[%clk 0:01:43]} 30. Qxg3 {[%clk 0:01:22]}  Rxg3+ {[%clk 0:01:43]} 31. Kxg3 {[%clk 0:01:23]}  Bh4+ {[%clk 0:01:43]} 32. Kf3 {[%clk 0:01:20]}  Bxe1 {[%clk 0:01:40]} 33. Rxe1 {[%clk 0:01:21]}  Qh4 {[%clk 0:01:36]} 34. Re2 {[%clk 0:01:15]}  Kc7 {[%clk 0:01:19]} 35. f6 {[%clk 0:01:07]}  Qh3+ {[%clk 0:01:14]} 36. Kf2 {[%clk 0:01:05]}  Kd8 {[%clk 0:01:13]} 37. Ke1 {[%clk 0:00:53]}  Qxc3+ {[%clk 0:01:13]} 38. Kd1 {[%clk 0:00:53]}  Qd4+ {[%clk 0:01:09]} 39. Ke1 {[%clk 0:00:51]}  Qg1+ {[%clk 0:01:09]} 40. Kd2 {[%clk 0:00:51]}  d4 {[%clk 0:01:09]} 41. Be4 {[%clk 0:00:50]}  Qg5+ {[%clk 0:01:06]} 42. Kd1 {[%clk 0:00:45]}  d3 {[%clk 0:01:03]} 43. Rf2 {[%clk 0:00:45]}  Qg1+ {[%clk 0:01:02]} 0-1


[Site "https://www.chess.com"]

[Event "Titled Tuesday Blitz January 03 Late 2023"]
[White "marik_spb"]
[Black "Ardila, Oscar Humberto"]
[BlackFideId "4404742"]
[WhiteElo "2401"]
[BlackElo "1982"]
[Result "1/2-1/2"]
[Round "03"]
[TimeControl "180+2"]
[Date "2023.01.03"]
[WhiteClock "0:00:18"]
[BlackClock "0:00:18"]

1. e4 {[%clk 0:03:00]}  e5 {[%clk 0:02:59]} 2. Nf3 {[%clk 0:03:00]}  Nf6 {[%clk 0:03:00]} 3. Nxe5 {[%clk 0:03:00]}  d6 {[%clk 0:02:59]} 4. Nf3 {[%clk 0:03:00]}  Nxe4 {[%clk 0:03:00]} 5. d4 {[%clk 0:03:01]}  Be7 {[%clk 0:02:59]} 6. Bd3 {[%clk 0:03:01]}  d5 {[%clk 0:02:59]} 7. O-O {[%clk 0:03:01]}  O-O {[%clk 0:03:00]} 8. c4 {[%clk 0:03:02]}  Nc6 {[%clk 0:02:59]} 9. Nc3 {[%clk 0:02:53]}  Nxc3 {[%clk 0:02:58]} 10. bxc3 {[%clk 0:02:54]}  Be6 {[%clk 0:02:56]} 11. cxd5 {[%clk 0:02:53]}  Bxd5 {[%clk 0:02:55]} 12. Be3 {[%clk 0:02:45]}  Na5 {[%clk 0:02:47]} 13. Ne5 {[%clk 0:02:37]}  Bf6 {[%clk 0:02:38]} 14. f4 {[%clk 0:02:32]}  b6 {[%clk 0:02:26]} 15. Qh5 {[%clk 0:02:06]}  g6 {[%clk 0:02:24]} 16. Qh3 {[%clk 0:02:04]}  Re8 {[%clk 0:02:01]} 17. Rae1 {[%clk 0:01:46]}  c5 {[%clk 0:01:49]} 18. dxc5 {[%clk 0:01:18]}  bxc5 {[%clk 0:01:49]} 19. Bxc5 {[%clk 0:01:17]}  Qc7 {[%clk 0:01:47]} 20. Bd4 {[%clk 0:01:14]}  Bg7 {[%clk 0:01:44]} 21. Qd7 {[%clk 0:00:53]}  Qxd7 {[%clk 0:01:39]} 22. Nxd7 {[%clk 0:00:54]}  Bxa2 {[%clk 0:01:02]} 23. Rxe8+ {[%clk 0:00:53]}  Rxe8 {[%clk 0:01:01]} 24. Ra1 {[%clk 0:00:54]}  Bc4 {[%clk 0:01:01]} 25. Bxc4 {[%clk 0:00:48]}  Nxc4 {[%clk 0:01:01]} 26. Rxa7 {[%clk 0:00:48]}  Bxd4+ {[%clk 0:00:57]} 27. cxd4 {[%clk 0:00:49]}  Re2 {[%clk 0:00:57]} 28. Ne5 {[%clk 0:00:37]}  Ne3 {[%clk 0:00:55]} 29. Nxf7 {[%clk 0:00:33]}  Rxg2+ {[%clk 0:00:54]} 30. Kh1 {[%clk 0:00:33]}  Rf2 {[%clk 0:00:53]} 31. h3 {[%clk 0:00:28]}  Rxf4 {[%clk 0:00:49]} 32. Nh6+ {[%clk 0:00:26]}  Kf8 {[%clk 0:00:49]} 33. Rxh7 {[%clk 0:00:21]}  Rxd4 {[%clk 0:00:48]} 34. Kh2 {[%clk 0:00:18]}  Rf4 {[%clk 0:00:24]} 35. Kg3 {[%clk 0:00:18]}  Rf1 {[%clk 0:00:23]} 36. Ra7 {[%clk 0:00:16]}  Nf5+ {[%clk 0:00:19]} 37. Nxf5 {[%clk 0:00:16]}  Rxf5 {[%clk 0:00:19]} 38. Kg4 {[%clk 0:00:17]}  Kg8 {[%clk 0:00:19]} 39. Rd7 {[%clk 0:00:16]}  Kf8 {[%clk 0:00:19]} 40. h4 {[%clk 0:00:17]}  Kg8 {[%clk 0:00:19]} 41. Re7 {[%clk 0:00:17]}  Kf8 {[%clk 0:00:19]} 42. Rh7 {[%clk 0:00:17]}  Kg8 {[%clk 0:00:19]} 43. Rd7 {[%clk 0:00:15]}  Kf8 {[%clk 0:00:19]} 44. Rd6 {[%clk 0:00:16]}  Kg7 {[%clk 0:00:19]} 45. Ra6 {[%clk 0:00:16]}  Rd5 {[%clk 0:00:19]} 46. Ra4 {[%clk 0:00:16]}  Kh6 {[%clk 0:00:18]} 47. Rf4 {[%clk 0:00:16]}  Re5 {[%clk 0:00:18]} 48. Rd4 {[%clk 0:00:16]}  Rc5 {[%clk 0:00:18]} 49. Re4 {[%clk 0:00:16]}  Rb5 {[%clk 0:00:18]} 50. Rf4 {[%clk 0:00:16]}  Rc5 {[%clk 0:00:18]} 51. Re4 {[%clk 0:00:16]}  Rb5 {[%clk 0:00:18]} 52. Rf4 {[%clk 0:00:17]}  Rc5 {[%clk 0:00:18]} 53. Re4 {[%clk 0:00:18]} 1/2-1/2


[Site "https://www.chess.com"]

[Event "Titled Tuesday Blitz January 03 Late 2023"]
[White "La Villa Rivas, Marlon Javier"]
[Black "Rengifo Blancas, Renzo Jhonathan"]
[WhiteFideId "3519546"]
[BlackFideId "3807185"]
[WhiteElo "2246"]
[BlackElo "2131"]
[Result "1-0"]
[Round "03"]
[TimeControl "180+2"]
[Date "2023.01.03"]
[WhiteClock "0:00:55"]
[BlackClock "0:00:01"]

1. e4 {[%clk 0:02:51]}  e5 {[%clk 0:02:59]} 2. Nf3 {[%clk 0:02:51]}  Nc6 {[%clk 0:03:00]} 3. Bb5 {[%clk 0:02:51]}  Nd4 {[%clk 0:03:01]} 4. Bc4 {[%clk 0:02:48]}  Nxf3+ {[%clk 0:02:32]} 5. Qxf3 {[%clk 0:02:49]}  Nf6 {[%clk 0:02:33]} 6. Nc3 {[%clk 0:02:46]}  c6 {[%clk 0:02:33]} 7. O-O {[%clk 0:02:45]}  Be7 {[%clk 0:02:33]} 8. Qg3 {[%clk 0:02:40]}  O-O {[%clk 0:02:28]} 9. Qxe5 {[%clk 0:02:38]}  Re8 {[%clk 0:02:23]} 10. Qg3 {[%clk 0:02:37]}  d5 {[%clk 0:02:22]} 11. exd5 {[%clk 0:02:34]}  cxd5 {[%clk 0:02:23]} 12. Bb5 {[%clk 0:02:34]}  Bd6 {[%clk 0:02:23]} 13. Qh4 {[%clk 0:02:28]}  Re5 {[%clk 0:02:21]} 14. f4 {[%clk 0:02:03]}  Rh5 {[%clk 0:02:17]} 15. Qg3 {[%clk 0:02:02]}  d4 {[%clk 0:01:44]} 16. Be2 {[%clk 0:01:46]}  Rh6 {[%clk 0:00:53]} 17. Nb5 {[%clk 0:01:44]}  Ne4 {[%clk 0:00:52]} 18. Qf3 {[%clk 0:01:38]}  Bf5 {[%clk 0:00:34]} 19. Nxd6 {[%clk 0:01:37]}  Nxd6 {[%clk 0:00:33]} 20. d3 {[%clk 0:01:36]}  Qh4 {[%clk 0:00:32]} 21. h3 {[%clk 0:01:29]}  Rg6 {[%clk 0:00:32]} 22. Kh2 {[%clk 0:01:27]}  Bg4 {[%clk 0:00:26]} 23. Qf2 {[%clk 0:01:23]}  Qxf2 {[%clk 0:00:16]} 24. Rxf2 {[%clk 0:01:24]}  Bxe2 {[%clk 0:00:14]} 25. Rxe2 {[%clk 0:01:25]}  h5 {[%clk 0:00:13]} 26. Bd2 {[%clk 0:01:23]}  Nf5 {[%clk 0:00:12]} 27. Rae1 {[%clk 0:01:21]}  Kh7 {[%clk 0:00:12]} 28. Re5 {[%clk 0:01:21]}  Rf6 {[%clk 0:00:12]} 29. g4 {[%clk 0:01:17]}  hxg4 {[%clk 0:00:12]} 30. hxg4 {[%clk 0:01:18]}  Nh4 {[%clk 0:00:11]} 31. Rh5+ {[%clk 0:01:17]}  Rh6 {[%clk 0:00:11]} 32. Rxh6+ {[%clk 0:01:16]}  gxh6 {[%clk 0:00:11]} 33. Kg3 {[%clk 0:01:15]}  Ng6 {[%clk 0:00:12]} 34. f5 {[%clk 0:01:14]}  Nf8 {[%clk 0:00:11]} 35. Re7 {[%clk 0:01:14]}  Kg7 {[%clk 0:00:11]} 36. Rxb7 {[%clk 0:01:14]}  Rc8 {[%clk 0:00:11]} 37. c4 {[%clk 0:01:13]}  dxc3 {[%clk 0:00:06]} 38. Bxc3+ {[%clk 0:01:13]}  Kg8 {[%clk 0:00:07]} 39. Rxa7 {[%clk 0:01:12]}  Rd8 {[%clk 0:00:07]} 40. d4 {[%clk 0:01:11]}  Nd7 {[%clk 0:00:08]} 41. Ba5 {[%clk 0:01:08]}  Rb8 {[%clk 0:00:05]} 42. Rxd7 {[%clk 0:01:07]}  Rxb2 {[%clk 0:00:06]} 43. a3 {[%clk 0:01:03]}  f6 {[%clk 0:00:06]} 44. Bb4 {[%clk 0:01:03]}  h5 {[%clk 0:00:07]} 45. gxh5 {[%clk 0:01:02]}  Kh8 {[%clk 0:00:07]} 46. Be7 {[%clk 0:01:00]}  Rb6 {[%clk 0:00:07]} 47. d5 {[%clk 0:00:58]}  Ra6 {[%clk 0:00:07]} 48. d6 {[%clk 0:00:58]}  Kh7 {[%clk 0:00:07]} 49. Bxf6+ {[%clk 0:00:57]}  Kh6 {[%clk 0:00:07]} 50. Bb2 {[%clk 0:00:56]}  Rb6 {[%clk 0:00:05]} 51. Bc1+ {[%clk 0:00:55]}  Kxh5 {[%clk 0:00:01]} 52. Rh7# {[%clk 0:00:55]} 1-0


[Site "https://www.chess.com"]

[Event "Titled Tuesday Blitz January 03 Late 2023"]
[White "Urbina Perez, Juan Antonio"]
[Black "Souza, Gustavo Horokoski De"]
[WhiteFideId "2217368"]
[BlackFideId "2146584"]
[WhiteElo "2266"]
[BlackElo "1943"]
[Result "1-0"]
[Round "03"]
[TimeControl "180+2"]
[Date "2023.01.03"]
[WhiteClock "0:00:54"]
[BlackClock "0:00:04"]

1. d4 {[%clk 0:03:00]}  Nf6 {[%clk 0:02:58]} 2. Nf3 {[%clk 0:02:59]}  g6 {[%clk 0:02:57]} 3. c4 {[%clk 0:02:57]}  Bg7 {[%clk 0:02:56]} 4. Nc3 {[%clk 0:02:57]}  O-O {[%clk 0:02:56]} 5. e3 {[%clk 0:02:57]}  b6 {[%clk 0:02:44]} 6. Be2 {[%clk 0:02:57]}  Bb7 {[%clk 0:02:44]} 7. O-O {[%clk 0:02:57]}  c6 {[%clk 0:02:43]} 8. d5 {[%clk 0:02:56]}  cxd5 {[%clk 0:02:42]} 9. cxd5 {[%clk 0:02:57]}  d6 {[%clk 0:02:41]} 10. e4 {[%clk 0:02:54]}  Ba6 {[%clk 0:02:40]} 11. Re1 {[%clk 0:02:50]}  Bxe2 {[%clk 0:02:35]} 12. Qxe2 {[%clk 0:02:51]}  Nbd7 {[%clk 0:02:34]} 13. Be3 {[%clk 0:02:50]}  Ng4 {[%clk 0:02:33]} 14. Bd4 {[%clk 0:02:49]}  Nge5 {[%clk 0:02:31]} 15. Nxe5 {[%clk 0:02:45]}  Nxe5 {[%clk 0:02:31]} 16. f4 {[%clk 0:02:44]}  Nf3+ {[%clk 0:02:30]} 17. Qxf3 {[%clk 0:02:38]}  Bxd4+ {[%clk 0:02:30]} 18. Kh1 {[%clk 0:02:38]}  Rc8 {[%clk 0:02:29]} 19. Rac1 {[%clk 0:02:38]}  Rc5 {[%clk 0:02:13]} 20. Rcd1 {[%clk 0:02:31]}  Bxc3 {[%clk 0:01:55]} 21. bxc3 {[%clk 0:02:32]}  Qc7 {[%clk 0:01:55]} 22. Rd3 {[%clk 0:02:29]}  Rc8 {[%clk 0:01:55]} 23. Ree3 {[%clk 0:02:27]}  Ra5 {[%clk 0:01:54]} 24. h3 {[%clk 0:02:13]}  Rxa2 {[%clk 0:01:52]} 25. e5 {[%clk 0:02:14]}  a5 {[%clk 0:01:41]} 26. f5 {[%clk 0:02:13]}  a4 {[%clk 0:01:32]} 27. fxg6 {[%clk 0:02:09]}  fxg6 {[%clk 0:01:26]} 28. e6 {[%clk 0:02:04]}  Rf8 {[%clk 0:01:25]} 29. Qe4 {[%clk 0:02:04]}  Ra1+ {[%clk 0:01:02]} 30. Kh2 {[%clk 0:02:04]}  Qc5 {[%clk 0:01:02]} 31. Rf3 {[%clk 0:02:01]}  Qg1+ {[%clk 0:00:56]} 32. Kg3 {[%clk 0:01:57]}  Rxf3+ {[%clk 0:00:34]} 33. Qxf3 {[%clk 0:01:52]}  Qe1+ {[%clk 0:00:34]} 34. Kg4 {[%clk 0:01:41]}  h5+ {[%clk 0:00:33]} 35. Kg5 {[%clk 0:01:38]}  Qe5+ {[%clk 0:00:25]} 36. Kxg6 {[%clk 0:01:35]}  Qg7+ {[%clk 0:00:13]} 37. Kxh5 {[%clk 0:01:35]}  Qh7+ {[%clk 0:00:13]} 38. Kg4 {[%clk 0:01:34]}  Qg6+ {[%clk 0:00:12]} 39. Kh4 {[%clk 0:01:33]}  Qh7+ {[%clk 0:00:11]} 40. Kg3 {[%clk 0:01:32]}  Qg7+ {[%clk 0:00:09]} 41. Kh2 {[%clk 0:01:29]}  Qe5+ {[%clk 0:00:09]} 42. Qg3+ {[%clk 0:01:30]}  Qxg3+ {[%clk 0:00:09]} 43. Rxg3+ {[%clk 0:01:31]}  Kf8 {[%clk 0:00:09]} 44. Rg4 {[%clk 0:01:29]}  a3 {[%clk 0:00:09]} 45. Rf4+ {[%clk 0:01:26]}  Ke8 {[%clk 0:00:08]} 46. Ra4 {[%clk 0:01:16]}  Kf8 {[%clk 0:00:08]} 47. Ra8+ {[%clk 0:01:10]}  Kg7 {[%clk 0:00:07]} 48. Ra7 {[%clk 0:01:11]}  Kf6 {[%clk 0:00:07]} 49. h4 {[%clk 0:01:12]}  a2 {[%clk 0:00:08]} 50. g4 {[%clk 0:01:11]}  Ke5 {[%clk 0:00:05]} 51. h5 {[%clk 0:01:10]}  Kf6 {[%clk 0:00:03]} 52. h6 {[%clk 0:01:10]}  Kg6 {[%clk 0:00:03]} 53. g5 {[%clk 0:01:11]}  Rc1 {[%clk 0:00:01]} 54. Rxa2 {[%clk 0:01:10]}  Rxc3 {[%clk 0:00:02]} 55. Rf2 {[%clk 0:01:08]}  Kh7 {[%clk 0:00:01]} 56. Rf7+ {[%clk 0:01:08]}  Kg6 {[%clk 0:00:01]} 57. h7 {[%clk 0:01:07]}  Rc2+ {[%clk 0:00:02]} 58. Kg3 {[%clk 0:01:06]}  Rc3+ {[%clk 0:00:02]} 59. Kf2 {[%clk 0:01:02]}  Rc2+ {[%clk 0:00:02]} 60. Ke3 {[%clk 0:01:02]}  Rh2 {[%clk 0:00:03]} 61. Rxe7 {[%clk 0:01:01]}  Kxg5 {[%clk 0:00:03]} 62. Rf7 {[%clk 0:00:57]}  Kg6 {[%clk 0:00:04]} 63. Kd4 {[%clk 0:00:57]}  Rd2+ {[%clk 0:00:03]} 64. Kc4 {[%clk 0:00:55]}  Rc2+ {[%clk 0:00:03]} 65. Kb5 {[%clk 0:00:55]}  Rh2 {[%clk 0:00:04]} 66. Kxb6 {[%clk 0:00:55]}  Rxh7 {[%clk 0:00:03]} 67. Rxh7 {[%clk 0:00:54]}  Kxh7 {[%clk 0:00:04]} 68. e7 {[%clk 0:00:54]} 1-0


[Site "https://www.chess.com"]